fUSD/lending_fUSD_20250905
["ID","MTS","AMOUNT","RATE_DAILY","PERIOD"]
[383689553,1757088655396,-176.2812,0.00030137,7]
[383689554,1757088655406,-176.2812,0.00030137,7]
[383689555,1757088655415,-176.2812,0.00030137,7]
[383689556,1757088655425,-176.2812,0.00030137,7]
[383689557,1757088655434,-176.2812,0.00030137,7]
[383689558,1757088655444,-176.2812,0.00030137,7]
[383689559,1757088655453,-176.2812,0.00030137,7]
[383689560,1757088655462,-176.2812,0.00030137,7]
[383689561,1757088655471,-151.0,0.00030137,7]
[383689562,1757088655480,-151.0,0.00030137,7]
[383689563,1757088655492,-151.0,0.00030137,7]
[383689564,1757088655501,-151.0,0.00030137,7]
[383689565,1757088655511,-151.0,0.00030137,7]
[383689566,1757088655521,-151.0,0.00030137,7]
[383689567,1757088655536,-151.0,0.00030137,7]
[383689568,1757088655546,-151.0,0.00030137,7]
[383689569,1757088655555,-151.0,0.00030137,7]
[383689570,1757088655565,-1200.0,0.00030137,7]
[383689571,1757088655576,-500.0,0.00030137,7]
[383689572,1757088655588,-1200.0,0.00030137,7]
[383689573,1757088655598,-500.83733438,0.00030137,7]
[383689574,1757088655608,-500.0,0.00030137,7]
[383689575,1757088655618,-506.42019514,0.00030137,7]
[383689576,1757088655628,-500.0,0.00030137,7]
[383689577,1757088655637,-500.0,0.00030137,7]
[383689578,1757088655646,-1200.0,0.00030137,7]
[383689579,1757088655656,-218.73871622,0.00030137,7]
[383689580,1757088655666,-500.0,0.00030137,7]
[383689581,1757088655676,-500.0,0.00030137,7]
[383689582,1757088655685,-168.18112244,0.00030137,7]
[383689583,1757088655694,-500.0,0.00030137,7]
[383689584,1757088655704,-1200.0,0.00030137,7]
[383689585,1757088655714,-500.0,0.00030137,7]
[383689586,1757088655724,-500.0,0.00030137,7]
[383689587,1757088655733,-1700.0,0.00030137,7]
[383689588,1757088655743,-500.0,0.00030137,7]
[383689589,1757088655755,-500.0,0.00030137,7]
[383689590,1757088655767,-500.0,0.00030137,7]
[383689591,1757088655778,-1700.0,0.00030137,7]
[383689592,1757088655788,-500.0,0.00030137,7]
[383689593,1757088655798,-500.0,0.00030137,7]
[383689594,1757088655808,-500.0,0.00030137,7]
[383689595,1757088655818,-1200.0,0.00030137,7]
[383689596,1757088655828,-1700.0,0.00030137,7]
[383689597,1757088655839,-500.0,0.00030137,7]
[383689598,1757088655849,-500.0,0.00030137,7]
[383689599,1757088655860,-500.0,0.00030137,7]
[383689600,1757088655870,-1700.0,0.00030137,7]
[383689601,1757088655882,-1200.0,0.00030137,7]
[383689602,1757088655892,-810.0,0.00030137,7]
[383689603,1757088655902,-500.0,0.00030137,7]
[383689604,1757088655912,-500.0,0.00030137,7]
[383689605,1757088655922,-1700.0,0.00030137,7]
[383689606,1757088655932,-500.0,0.00030137,7]
[383689607,1757088655943,-961.38609621,0.00030137,7]
[383689608,1757088655953,-1200.0,0.00030137,7]
[383689609,1757088655964,-500.0,0.00030137,7]
[383689610,1757088655974,-560.44338692,0.00030137,7]
[383689611,1757088655984,-1700.0,0.00030137,7]
[383689612,1757088655995,-500.0,0.00030137,7]
[383689613,1757088656006,-500.0,0.00030137,7]
[383689614,1757088656019,-500.0,0.00030137,7]
[383689615,1757088656030,-1200.0,0.00030137,7]
[383689616,1757088656041,-500.7,0.00030137,7]
[383689617,1757088656051,-1700.0,0.00030137,7]
[383689618,1757088656060,-500.0,0.00030137,7]
[383689619,1757088656070,-500.0,0.00030137,7]
[383689620,1757088656080,-1700.0,0.00030137,7]
[383689621,1757088656090,-500.0,0.00030137,7]
[383689622,1757088656102,-500.0,0.00030137,7]
[383689623,1757088656111,-1700.0,0.00030137,7]
[383689624,1757088656121,-1200.0,0.00030137,7]
[383689625,1757088656131,-500.0,0.00030137,7]
[383689626,1757088656141,-500.0,0.00030137,7]
[383689627,1757088656150,-1700.0,0.00030137,7]
[383689628,1757088656161,-500.0,0.00030137,7]
[383689629,1757088656171,-500.0,0.00030137,7]
[383689630,1757088656181,-1200.0,0.00030137,7]
[383689631,1757088656191,-500.0,0.00030137,7]
[383689632,1757088656201,-500.0,0.00030137,7]
[383689633,1757088656211,-500.0,0.00030137,7]
[383689634,1757088656222,-1200.0,0.00030137,7]
[383689635,1757088656231,-617.89901712,0.00030137,7]
[383689636,1757088656241,-1700.0,0.00030137,7]
[383689637,1757088656251,-500.0,0.00030137,7]
[383689638,1757088656261,-1200.0,0.00030137,7]
[383689639,1757088656271,-721.28960847,0.00030137,7]
[383689640,1757088656281,-1200.0,0.00030137,7]
[383689641,1757088656291,-1700.0,0.00030137,7]
[383689642,1757088656300,-500.0,0.00030137,7]
[383689643,1757088656310,-1200.0,0.00030137,7]
[383689644,1757088656319,-1200.0,0.00030137,7]
[383689645,1757088656328,-1700.0,0.00030137,7]
[383689646,1757088656338,-500.0,0.00030137,7]
[383689647,1757088656348,-1200.0,0.00030137,7]
[383689648,1757088656358,-1200.0,0.00030137,7]
[383689649,1757088656368,-1700.0,0.00030137,7]
[383689650,1757088656378,-500.0,0.00030137,7]
[383689651,1757088656387,-1200.0,0.00030137,7]
[383689652,1757088656398,-1200.0,0.00030137,7]
[383689653,1757088656409,-1700.0,0.00030137,7]
[383689654,1757088656418,-500.0,0.00030137,7]
[383689655,1757088656428,-500.0,0.00030137,7]
[383689656,1757088656437,-1200.0,0.00030137,7]
[383689657,1757088656447,-1200.0,0.00030137,7]
[383689658,1757088656456,-1400.0,0.00030137,7]
[383689659,1757088656466,-500.0,0.00030137,7]
[383689660,1757088656476,-1200.0,0.00030137,7]
[383689661,1757088656486,-427.85149818,0.00030137,7]
[383689662,1757088656496,-1200.0,0.00030137,7]
[383689663,1757088656506,-1400.0,0.00030137,7]
[383689664,1757088656515,-500.0,0.00030137,7]
[383689665,1757088656527,-1700.0,0.00030137,7]
[383689666,1757088656538,-1200.0,0.00030137,7]
[383689667,1757088656547,-312.21193696,0.00030137,7]
[383689668,1757088656557,-1200.0,0.00030137,7]
[383689669,1757088656568,-573.69819831,0.00030137,7]
[383689670,1757088656578,-500.0,0.00030137,7]
[383689671,1757088656587,-1700.0,0.00030137,7]
[383689672,1757088656597,-500.0,0.00030137,7]
[383689673,1757088656608,-1400.0,0.00030137,7]
[383689674,1757088656619,-1200.0,0.00030137,7]
[383689675,1757088656629,-1200.0,0.00030137,7]
[383689676,1757088656638,-500.0,0.00030137,7]
[383689677,1757088656649,-500.0,0.00030137,7]
[383689678,1757088656659,-1700.0,0.00030137,7]
[383689679,1757088656668,-687.06947383,0.00030137,7]
[383689680,1757088656678,-1400.0,0.00030137,7]
[383689681,1757088656688,-1200.0,0.00030137,7]
[383689682,1757088656698,-1200.0,0.00030137,7]
[383689683,1757088656708,-600.53406039,0.00030137,7]
[383689684,1757088656717,-500.0,0.00030137,7]
[383689685,1757088656727,-1700.0,0.00030137,7]
[383689686,1757088656737,-1400.0,0.00030137,7]
[383689687,1757088656747,-1200.0,0.00030137,7]
[383689688,1757088656756,-500.0,0.00030137,7]
[383689689,1757088656766,-1200.0,0.00030137,7]
[383689690,1757088656776,-1700.0,0.00030137,7]
[383689691,1757088656785,-1400.0,0.00030137,7]
[383689692,1757088656796,-1200.0,0.00030137,7]
[383689693,1757088656806,-500.0,0.00030137,7]
[383689694,1757088656816,-1200.0,0.00030137,7]
[383689695,1757088656825,-1700.0,0.00030137,7]
[383689696,1757088656835,-1400.0,0.00030137,7]
[383689697,1757088656845,-1200.0,0.00030137,7]
[383689698,1757088656855,-1200.0,0.00030137,7]
[383689699,1757088656864,-500.0,0.00030137,7]
[383689700,1757088656874,-1400.0,0.00030137,7]
[383689701,1757088656883,-1200.0,0.00030137,7]
[383689702,1757088656893,-1200.0,0.00030137,7]
[383689703,1757088656902,-500.0,0.00030137,7]
[383689704,1757088656912,-500.0,0.00030137,7]
[383689705,1757088656922,-500.0,0.00030137,7]
[383689706,1757088656932,-1200.0,0.00030137,7]
[383689707,1757088656941,-500.0,0.00030137,7]
[383689708,1757088656950,-152.66251733,0.00030137,7]
[383689709,1757088656960,-500.0,0.00030137,7]
[383689710,1757088656968,-1200.0,0.00030137,7]
[383689711,1757088656978,-1200.0,0.00030137,7]
[383689712,1757088656988,-1400.0,0.00030137,7]
[383689713,1757088656997,-1300.0,0.00030137,7]
[383689714,1757088657007,-500.0,0.00030137,7]
[383689715,1757088657017,-500.0,0.00030137,7]
[383689716,1757088657027,-1200.0,0.00030137,7]
[383689717,1757088657037,-1200.0,0.00030137,7]
[383689718,1757088657047,-1400.0,0.00030137,7]
[383689719,1757088657057,-1300.0,0.00030137,7]
[383689720,1757088657067,-500.0,0.00030137,7]
[383689721,1757088657077,-500.0,0.00030137,7]
[383689722,1757088657087,-166.5953983,0.00030137,7]
[383689723,1757088657096,-500.0,0.00030137,7]
[383689724,1757088657106,-1200.0,0.00030137,7]
[383689725,1757088657116,-1400.0,0.00030137,7]
[383689726,1757088657125,-994.59127981,0.00030137,7]
[383689727,1757088657135,-1300.0,0.00030137,7]
[383689728,1757088657148,-500.0,0.00030137,7]
[383689729,1757088657159,-500.0,0.00030137,7]
[383689730,1757088657168,-500.0,0.00030137,7]
[383689731,1757088657178,-500.0,0.00030137,7]
[383689732,1757088657187,-1200.0,0.00030137,7]
[383689733,1757088657197,-1400.0,0.00030137,7]
[383689734,1757088657206,-1300.0,0.00030137,7]
[383689735,1757088657216,-500.0,0.00030137,7]
[383689736,1757088657225,-603.27904872,0.00030137,7]
[383689737,1757088657234,-500.0,0.00030137,7]
[383689738,1757088657244,-216.51346479,0.00030137,7]
[383689739,1757088657253,-1400.0,0.00030137,7]
[383689740,1757088657262,-1200.0,0.00030137,7]
[383689741,1757088657272,-1957.14078106,0.00030137,7]
[383689742,1757088657281,-1300.0,0.00030137,7]
[383689743,1757088657290,-500.0,0.00030137,7]
[383689744,1757088657300,-1400.0,0.00030137,7]
[383689745,1757088657309,-1200.0,0.00030137,7]
[383689746,1757088657319,-1300.0,0.00030137,7]
[383689747,1757088657328,-500.0,0.00030137,7]
[383689748,1757088657338,-1400.0,0.00030137,7]
[383689749,1757088657347,-1300.0,0.00030137,7]
[383689750,1757088657357,-1200.0,0.00030137,7]
[383689751,1757088657366,-500.0,0.00030137,7]
[383689752,1757088657376,-1400.0,0.00030137,7]
[383689753,1757088657385,-1300.0,0.00030137,7]
[383689754,1757088657394,-1200.0,0.00030137,7]
[383689755,1757088657403,-500.0,0.00030137,7]
[383689756,1757088657413,-1700.0,0.00030137,7]
[383689757,1757088657423,-196.35202683,0.00030137,7]
[383689758,1757088657432,-809.23995426,0.00030137,7]
[383689759,1757088657442,-1300.0,0.00030137,7]
[383689760,1757088657451,-1200.0,0.00030137,7]
[383689761,1757088657461,-500.0,0.00030137,7]
[383689762,1757088657470,-1700.0,0.00030137,7]
[383689763,1757088657479,-1300.0,0.00030137,7]
[383689764,1757088657491,-1400.0,0.00030137,7]
[383689765,1757088657501,-500.0,0.00030137,7]
[383689766,1757088657512,-1700.0,0.00030137,7]
[383689767,1757088657526,-1200.0,0.00030137,7]
[383689768,1757088657536,-1300.0,0.00030137,7]
[383689769,1757088657546,-500.0,0.00030137,7]
[383689770,1757088657557,-1400.0,0.00030137,7]
[383689771,1757088657567,-1200.0,0.00030137,7]
[383689772,1757088657578,-500.0,0.00030137,7]
[383689773,1757088657588,-1300.0,0.00030137,7]
[383689774,1757088657599,-1400.0,0.00030137,7]
[383689775,1757088657609,-663.64447555,0.00030137,7]
[383689776,1757088657619,-933.30342496,0.00030137,7]
[383689777,1757088657629,-1200.0,0.00030137,7]
[383689778,1757088657639,-1400.0,0.00030137,7]
[383689779,1757088657648,-500.0,0.00030137,7]
[383689780,1757088657659,-1700.0,0.00030137,7]
[383689781,1757088657671,-1300.0,0.00030137,7]
[383689782,1757088657680,-600.0,0.00030137,7]
[383689783,1757088657690,-1200.0,0.00030137,7]
[383689784,1757088657701,-1400.0,0.00030137,7]
[383689785,1757088657712,-1700.0,0.00030137,7]
[383689786,1757088657722,-1300.0,0.00030137,7]
[383689787,1757088657733,-600.0,0.00030137,7]
[383689788,1757088657743,-500.0,0.00030137,7]
[383689789,1757088657753,-1400.0,0.00030137,7]
[383689790,1757088657763,-1800.0,0.00030137,7]
[383689791,1757088657773,-1700.0,0.00030137,7]
[383689792,1757088657782,-500.0,0.00030137,7]
[383689793,1757088657793,-1300.0,0.00030137,7]
[383689794,1757088657803,-1400.0,0.00030137,7]
[383689795,1757088657812,-3122.39850342,0.00030137,7]
[383689796,1757088657822,-983.87461363,0.00030137,7]
[383689797,1757088657834,-500.0,0.00030137,7]
[383689798,1757088657843,-500.0,0.00030137,7]
[383689799,1757088657853,-180.18517051,0.00030137,7]
[383689800,1757088657864,-500.0,0.00030137,7]
[383689801,1757088657875,-1400.0,0.00030137,7]
[383689802,1757088657887,-1300.0,0.00030137,7]
[383689803,1757088657897,-500.0,0.00030137,7]
[383689804,1757088657907,-600.0,0.00030137,7]
[383689805,1757088657917,-500.0,0.00030137,7]
[383689806,1757088657926,-500.0,0.00030137,7]
[383689807,1757088657935,-1300.0,0.00030137,7]
[383689808,1757088657945,-1400.0,0.00030137,7]
[383689809,1757088657955,-1400.0,0.00030137,7]
[383689810,1757088658131,-600.0,0.00030137,7]
[383689811,1757088658142,-500.0,0.00030137,7]
[383689812,1757088658153,-1300.0,0.00030137,7]
[383689813,1757088658164,-1400.0,0.00030137,7]
[383689814,1757088658174,-1400.0,0.00030137,7]
[383689815,1757088658184,-500.0,0.00030137,7]
[383689816,1757088658194,-1300.0,0.00030137,7]
[383689817,1757088658203,-1400.0,0.00030137,7]
[383689818,1757088658212,-1400.0,0.00030137,7]
[383689819,1757088658222,-500.0,0.00030137,7]
[383689820,1757088658232,-600.0,0.00030137,7]
[383689821,1757088658241,-1400.0,0.00030137,7]
[383689822,1757088658251,-1300.0,0.00030137,7]
[383689823,1757088658260,-1400.0,0.00030137,7]
[383689824,1757088658270,-600.0,0.00030137,7]
[383689825,1757088658280,-1400.0,0.00030137,7]
[383689826,1757088658289,-1300.0,0.00030137,7]
[383689827,1757088658299,-500.0,0.00030137,7]
[383689828,1757088658309,-1400.0,0.00030137,7]
[383689829,1757088658318,-600.0,0.00030137,7]
[383689830,1757088658328,-1300.0,0.00030137,7]
[383689831,1757088658338,-500.0,0.00030137,7]
[383689832,1757088658347,-1400.0,0.00030137,7]
[383689833,1757088658357,-1400.0,0.00030137,7]
[383689834,1757088658367,-600.0,0.00030137,7]
[383689835,1757088658376,-500.0,0.00030137,7]
[383689836,1757088658386,-1400.0,0.00030137,7]
[383689837,1757088658396,-1400.0,0.00030137,7]
[383689838,1757088658405,-600.0,0.00030137,7]
[383689839,1757088658415,-1400.0,0.00030137,7]
[383689840,1757088658425,-600.0,0.00030137,7]
[383689841,1757088658435,-1300.0,0.00030137,7]
[383689842,1757088658444,-1400.0,0.00030137,7]
[383689843,1757088658454,-500.0,0.00030137,7]
[383689844,1757088658463,-1400.0,0.00030137,7]
[383689845,1757088658473,-600.0,0.00030137,7]
[383689846,1757088658483,-1300.0,0.00030137,7]
[383689847,1757088658493,-1400.0,0.00030137,7]
[383689848,1757088658502,-991.32403519,0.00030137,7]
[383689849,1757088658512,-2301.3327232,0.00030137,7]
[383689850,1757088658522,-600.0,0.00030137,7]
[383689851,1757088658534,-1400.0,0.00030137,7]
[383689852,1757088658544,-1300.0,0.00030137,7]
[383689853,1757088658553,-600.0,0.00030137,7]
[383689854,1757088658563,-1400.0,0.00030137,7]
[383689855,1757088658574,-1300.0,0.00030137,7]
[383689856,1757088658584,-600.0,0.00030137,7]
[383689857,1757088658593,-1300.0,0.00030137,7]
[383689858,1757088658604,-600.0,0.00030137,7]
[383689859,1757088658615,-1400.0,0.00030137,7]
[383689860,1757088658625,-1390.85274326,0.00030137,7]
[383689861,1757088658635,-600.0,0.00030137,7]
[383689862,1757088658645,-1400.0,0.00030137,7]
[383689863,1757088658655,-1400.0,0.00030137,7]
[383689864,1757088658666,-600.0,0.00030137,7]
[383689865,1757088658675,-1400.0,0.00030137,7]
[383689866,1757088658685,-600.0,0.00030137,7]
[383689867,1757088658695,-1400.0,0.00030137,7]
[383689868,1757088658704,-600.0,0.00030137,7]
[383689869,1757088658714,-1400.0,0.00030137,7]
[383689870,1757088658723,-600.0,0.00030137,7]
[383689871,1757088658732,-1400.0,0.00030137,7]
[383689872,1757088658742,-600.0,0.00030137,7]
[383689873,1757088658752,-1400.0,0.00030137,7]
[383689874,1757088658762,-600.0,0.00030137,7]
[383689875,1757088658772,-1400.0,0.00030137,7]
[383689876,1757088658782,-600.0,0.00030137,7]
[383689877,1757088658792,-1400.0,0.00030137,7]
[383689878,1757088658801,-1400.0,0.00030137,7]
[383689879,1757088658811,-2112.69022997,0.00030137,7]
[383689880,1757088658821,-600.0,0.00030137,7]
[383689881,1757088658831,-600.0,0.00030137,7]
[383689882,1757088658840,-600.0,0.00030137,7]
[383689883,1757088658850,-600.0,0.00030137,7]
[383689884,1757088658859,-772.53642214,0.00030137,7]
[383689885,1757088658868,-150.0,0.00030147,7]
[383689886,1757088658877,-150.0,0.00030147,7]
[383689887,1757088658887,-150.0,0.00030147,7]
[383689888,1757088658897,-150.0,0.00030147,7]
[383689889,1757088658906,-150.0,0.00030147,7]
[383689890,1757088658915,-150.0,0.00030147,7]
[383689891,1757088658925,-150.0,0.00030147,7]
[383689892,1757088658935,-150.0,0.00030147,7]
[383689893,1757088658945,-150.0,0.00030147,7]
[383689894,1757088658955,-150.0,0.00030147,7]
[383689895,1757088658969,-150.0,0.00030147,7]
[383689896,1757088658979,-243.775,0.00030147,7]
[383689897,1757088658988,-187.57235,0.0003015,2]
[383689898,1757088658998,-150.0,0.0003017,5]
[383689899,1757088659008,-226.00273683,0.00030173,5]
[383689900,1757088659018,-500.0,0.00030173,5]
[383689901,1757088659028,-1550.75,0.000302,30]
[383689902,1757088659038,-58600.05,0.000302,7]
[383689903,1757088659048,-5856.45,0.000302,7]
[383689904,1757088659058,-9924.09676012,0.00030218,2]
[383689905,1757088659068,-8900.61030289,0.00030219,2]
[383689906,1757088659079,-199.687,0.00030263,2]
[383689907,1757088659089,-150.111,0.00030263,2]
[383689908,1757088659099,-150.0,0.00030285,2]
[383689909,1757088659109,-150.0,0.00030285,2]
[383689910,1757088659128,-150.0,0.00030285,2]
[383689911,1757088659138,-500.0,0.00030285,2]
[383689912,1757088659149,-500.0,0.00030285,2]
[383689913,1757088659159,-500.0,0.00030285,2]
[383689914,1757088659168,-150.0,0.00030285,2]
[383689915,1757088659178,-150.0,0.00030285,2]
[383689916,1757088659187,-1258.0,0.00030303,2]
[383689917,1757088659197,-224.958,0.00030303,2]
[383689918,1757088659206,-516.0,0.00030441,5]
[383689919,1757088659216,-244.22,0.00030441,2]
[383689920,1757088659225,-200.0,0.00030444,5]
[383689921,1757088659236,-1900.0,0.00030554,2]
[383689922,1757088659245,-150.0,0.00030559,2]
[383689923,1757088659255,-150.0,0.00030559,2]
[383689924,1757088659265,-631.74245883,0.00030559,2]
[383689925,1757088659274,-500.0,0.00030559,2]
[383689926,1757088659284,-500.0,0.00030559,2]
[383689927,1757088659294,-295.36893609,0.00030559,2]
[383689928,1757088659303,-1779.52,0.000306,7]
[383689929,1757088659312,-1955.59,0.000306,7]
[383689930,1757088659322,-3694.86,0.000306,7]
[383689931,1757088659331,-296.64,0.000306,7]
[383689932,1757088659341,-187.57235,0.0003065,2]
[383689933,1757088659351,-150.0,0.00030684,120]
[383689934,1757088659360,-500.0,0.00030721,5]
[383689935,1757088659369,-277.35679052,0.00030805,2]
[383689936,1757088659379,-399.88405034,0.00030805,2]
[383689937,1757088659388,-695.39793187,0.00030806,2]
[383689938,1757088659398,-216.34272765,0.00030806,2]
[383689939,1757088659407,-150.0,0.00030821,120]
[383689940,1757088659416,-150.0,0.00030833,2]
[383689941,1757088659426,-242.07,0.00030833,2]
[383689942,1757088659436,-500.0,0.00030833,2]
[383689943,1757088659445,-500.0,0.00030833,2]
[383689944,1757088659454,-1900.0,0.00030869,2]
[383689945,1757088659463,-272.49352838,0.0003091,2]
[383689946,1757088659473,-150.0,0.00030958,120]
[383689947,1757088659483,-1396.97408947,0.00031,2]
[383689948,1757088659492,-334.08003019,0.00031,5]
[383689949,1757088659502,-2636.54429553,0.00031076,15]
[383689950,1757088659511,-150.0,0.00031095,120]
[383689951,1757088659520,-1550.75,0.000311,30]
[383689952,1757088659533,-58600.05,0.000311,7]
[383689953,1757088659542,-5856.45,0.000311,7]
[383689954,1757088659552,-26318.1,0.000311,2]
[383689955,1757088659562,-150.0,0.00031107,2]
[383689956,1757088659573,-500.0,0.00031107,2]
[383689957,1757088659584,-611.0,0.00031107,2]
[383689958,1757088659594,-9924.09676012,0.00031134,2]
[383689959,1757088659605,-8900.61030289,0.00031135,2]
[383689960,1757088659615,-187.57236,0.0003115,2]
[383689961,1757088659624,-173.99,0.00031176,2]
[383689962,1757088659634,-1900.0,0.00031184,2]
[383689963,1757088659643,-150.0,0.00031232,120]
[383689964,1757088659653,-150.0,0.00031369,120]
[383689965,1757088659663,-150.0,0.00031381,2]
[383689966,1757088659673,-500.0,0.00031381,2]
[383689967,1757088659683,-8352.32552336,0.000314,30]
[383689968,1757088659694,-1390.18147983,0.000314,30]
[383689969,1757088659704,-19246.74424838,0.0003143,4]
[383689970,1757088659714,-1900.0,0.00031499,2]
[383689971,1757088659725,-709.20663809,0.00031499,2]
[383689972,1757088659734,-193.52871274,0.000315,2]
[383689973,1757088659744,-150.0,0.00031506,120]
[383689974,1757088659753,-176.34,0.00031593,2]
[383689975,1757088659763,-351.0,0.00031617,2]
[383689976,1757088659772,-349.0,0.00031635,2]
[383689977,1757088659782,-150.0,0.00031643,120]
[383689978,1757088659791,-168.0,0.00031644,14]
[383689979,1757088659800,-1077.63734681,0.00031649,15]
[383689980,1757088659810,-187.57235,0.0003165,2]
[383689981,1757088659820,-500.0,0.00031655,2]
[383689982,1757088659829,-150.0,0.0003178,120]
[383689983,1757088659838,-1900.0,0.00031814,2]
[383689984,1757088659847,-244.22,0.00031825,2]
[383689985,1757088659856,-26318.1,0.000319,2]
[383689986,1757088659866,-168.67180485,0.000319,2]
[383689987,1757088659875,-150.0,0.00031917,120]
[383689988,1757088659885,-500.0,0.00031929,2]
[383689989,1757088659895,-2581.56180056,0.0003197,2]
[383689990,1757088659905,-349.0,0.00031976,2]
[383689991,1757088659916,-200.0,0.00032,7]
[383689992,1757088659926,-1550.75,0.00032,30]
[383689993,1757088659936,-58600.05,0.00032,7]
[383689994,1757088659946,-5856.45,0.00032,7]
[383689995,1757088659956,-7770.57536155,0.00032023,30]
[383689996,1757088659965,-349.0,0.00032036,7]
[383689997,1757088659975,-9924.09676012,0.00032051,2]
[383689998,1757088659985,-8900.61030289,0.00032052,2]
[383689999,1757088659994,-150.0,0.00032054,120]
[383690000,1757088660004,-2636.54429553,0.00032105,17]
[383690001,1757088660013,-1900.0,0.00032129,2]
[383690002,1757088660023,-187.57235,0.0003215,2]
[383690003,1757088660033,-287.61899177,0.00032174,2]
[383690004,1757088660043,-150.0,0.00032191,120]
[383690005,1757088660053,-500.0,0.00032203,2]
[383690006,1757088660063,-349.0,0.00032252,2]
[383690007,1757088660073,-150.0,0.00032328,120]
[383690008,1757088660083,-1103.50696188,0.00032352,2]
[383690009,1757088660092,-272.49352838,0.00032409,2]
[383690010,1757088660102,-1900.0,0.00032444,2]
[383690011,1757088660111,-150.0,0.00032465,120]
[383690012,1757088660121,-500.0,0.00032477,2]
[383690013,1757088660130,-349.0,0.00032494,2]
[383690014,1757088660140,-347.0,0.00032501,2]
[383690015,1757088660149,-347.0,0.00032512,2]
[383690016,1757088660160,-347.0,0.00032532,2]
[383690017,1757088660169,-150.0,0.00032602,120]
[383690018,1757088660179,-347.0,0.00032678,2]
[383690019,1757088660188,-26318.1,0.000327,2]
[383690020,1757088660197,-347.0,0.00032731,2]
[383690021,1757088660208,-150.0,0.00032739,120]
[383690022,1757088660218,-347.0,0.00032742,2]
[383690023,1757088660228,-200.0,0.00032751,2]
[383690024,1757088660237,-500.0,0.00032751,2]
[383690025,1757088660247,-150.0,0.00032876,120]
[383690026,1757088660256,-337.36,0.00032877,2]
[383690027,1757088660265,-276.72067077,0.00032877,2]
[383690028,1757088660274,-500.0,0.00032877,7]
[383690029,1757088660284,-500.0,0.00032877,7]
[383690030,1757088660293,-500.0,0.00032877,7]
[383690031,1757088660303,-500.0,0.00032877,7]
[383690032,1757088660312,-500.0,0.00032877,7]
[383690033,1757088660321,-500.0,0.00032877,7]
[383690034,1757088660331,-503.00264665,0.00032877,7]
[383690035,1757088660340,-1550.75,0.000329,30]
[383690036,1757088660350,-21386.82391135,0.000329,14]
[383690037,1757088661040,-269.89749788,0.000329,14]
[383690038,1757088661051,-602.44375258,0.000329,14]
[383690039,1757088661515,-151.0,0.00030101,7]
[383690040,1757088661527,-152.460862,0.0003012,7]
[383690041,1757088661539,-53.50804758,0.000329,14]
[383690042,1757088661555,-5129.71441029,0.000329,14]
[383690043,1757088661566,-14173.60144091,0.000329,14]
[383690044,1757088661592,-3931.6897722,0.000329,14]
[383690045,1757088662358,-151.0,0.000301,2]
[383690046,1757088662368,-1275.48714778,0.000329,14]
[383690047,1757088662379,-5628.63126363,0.000329,14]
[383690048,1757088662399,-6148.2527558,0.000329,14]
[383690049,1757088662411,-5856.45,0.000329,14]
[383690050,1757088662420,-347.0,0.00032943,2]
[383690051,1757088662430,-9924.09676012,0.00032968,2]
[383690052,1757088662440,-8900.61030289,0.00032968,2]